[Event "Elegant 1st Division League 2024"]
[Site "Dhaka"]
[Date "2024.07.13"]
[Round "3.20"]
[White "Hossain, Delwar"]
[Black "Saparya Ghosh"]
[Result "0-1"]
[Annotator "RC"]
[ECO "C00"]
[WhiteElo "1959"]
[BlackElo "1833"]
[PlyCount "104"]
[EventDate "2024.07.10"]
[EventType "team-tourn"]
[EventCountry "BAN"]
[SourceTitle "playchess.com"]
[Source "ChessBase"]
[SourceQuality "1"]
[TimeControl "5400+30"]

1. c4 {[%emt 0:01:02]} e6 {[%emt 0:01:32]} 2. e4 {[%emt 0:00:27]} d5 {[%emt 0:00:25]} 3. cxd5 {[%emt 0:00:39]} exd5 {[%emt 0:00:09]} 4. e5 {[%emt 0:00:25]} d4 {[%emt 0:00:51]} 5. Nf3 {[%emt 0:00:15]} Nc6 {[%emt 0:04:08]} 6. Bc4 {[%emt 0:00:47]} Bg4 {[%emt 0:15:52]} 7. Qb3 {[%emt 0:01:49]} Qd7 {[%emt 0:02:54]} 8. O-O {[%emt 0:00:41]} Na5 {[%emt 0:12:58]} 9. Qd3 {[%emt 0:11:12]} Bf5 {[%emt 0:03:53]} 10. Qxd4 {[%emt 0:00:53]} Qxd4 {[%emt 0:03:55]} 11. Nxd4 {[%emt 0:02:48]} Bxb1 {[%emt 0:00:11]} 12. Bxf7+ {[%emt 0:00:32]} Kxf7 {[%emt 0:00:09]} 13. Rxb1 {[%emt 0:00:04]} Rd8 {[%emt 0:11:17]} 14. Nf3 {[%emt 0:00:15]} h6 {[%emt 0:03:42]} 15. d4 {[%emt 0:00:45]} Nc6 {[%emt 0:05:23]} 16. Be3 {[%emt 0:01:21]} Nb4 {[%emt 0:31:11]} 17. a3 {[%emt 0:01:49]} Nd5 {[%emt 0:00:30]} 18. Rbc1 {[%emt 0:00:42]} Nge7 {[%emt 0:00:00]} 19. b4 {[%emt 0:01:37]} c6 {[%emt 0:00:00]} 20. Bd2 {[%emt 0:00:32]} Nb6 {[%emt 0:00:00]} 21. Rfe1 {[%emt 0:07:30]} Ke6 {[%emt 0:00:00]} 22. Be3 {[%emt 0:01:16]} Ned5 {[%emt 0:00:00]} 23. Bd2 {[%emt 0:01:46]} Be7 {[%emt 0:00:00]} 24. g3 {[%emt 0:06:14]} Rhf8 {[%emt 0:00:00]} 25. Kg2 {[%emt 0:00:26]} g5 {[%emt 0:00:00]} 26. h3 {[%emt 0:02:08]} Rf7 {[%emt 0:00:00]} 27. Re2 {[%emt 0:00:36]} Nc7 {[%emt 0:00:00]} 28. Be3 {[%emt 0:00:46]} Nbd5 {[%emt 0:00:00]} 29. Nd2 {[%emt 0:00:49]} Nb5 {[%emt 0:00:00]} 30. Nc4 {[%emt 0:00:58]} Rd7 {[%emt 0:03:53]} 31. Na5 {[%emt 0:01:07]} Nxe3+ {[%emt 0:03:07]} 32. fxe3 {[%emt 0:00:36]} Nxa3 {[%emt 0:00:00]} 33. Nxc6 {[%emt 0:02:37]} bxc6 {[%emt 0:00:00]} 34. Rxc6+ {[%emt 0:00:11]} Kd5 {[%emt 0:00:00]} 35. Ra6 {[%emt 0:00:21]} Nc4 {[%emt 0:01:15]} 36. e6 {[%emt 0:04:11]} Rf6 {[%emt 0:00:04]} 37. e4+ {[%emt 0:03:08]} Kxd4 {[%emt 0:00:04]} 38. e5 {[%emt 0:01:08]} Rg6 {[%emt 0:01:26]} 39. b5 {[%emt 0:01:11]} Rb7 {[%emt 0:00:28]} 40. Ra4 {[%emt 0:04:03]} Kd3 {[%emt 0:00:04]} 41. Re1 {[%emt 0:00:44]} Rxe6 {[%emt 0:01:00]} 42. Rd1+ {[%emt 0:00:51]} Nd2 {[%emt 0:00:24]} 43. Ra2 {[%emt 0:00:42]} Bb4 {[%emt 0:00:03]} 44. Re1 {[%emt 0:01:02]} Rxb5 {[%emt 0:01:04]} 45. Rxa7 {[%emt 0:00:29]} Rexe5 {[%emt 0:00:05]} 46. Rd7+ {[%emt 0:01:09]} Rbd5 {[%emt 0:00:18]} 47. Rxd5+ {[%emt 0:00:32]} Rxd5 {[%emt 0:00:01]} 48. Re8 {[%emt 0:01:04]} Ne4 {[%emt 0:00:19]} 49. Rh8 {[%emt 0:01:01]} Ke3 {[%emt 0:00:29]} 50. h4 {[%emt 0:01:55]} g4 {[%emt 0:00:19]} 51. Rxh6 {[%emt 0:00:58]} Rd2+ {[%emt 0:00:09]} 52. Kg1 {[%emt 0:00:39]} Kf3 {[%emt 0:00:06]} 0-1

[Event "Elegant 1st Division League 2024"]
[Site "Dhaka"]
[Date "2024.07.13"]
[Round "3.21"]
[White "Islam, Sheik   Khairul"]
[Black "Miraj Uddin, Ahmed"]
[Result "1-0"]
[Annotator "RC"]
[ECO "B10"]
[WhiteElo "1948"]
[BlackElo "1827"]
[PlyCount "135"]
[EventDate "2024.07.10"]
[EventType "team-tourn"]
[EventCountry "BAN"]
[SourceTitle "playchess.com"]
[Source "ChessBase"]
[SourceQuality "1"]
[TimeControl "5400+30"]

1. c4 {[%emt 0:00:03]} e6 {[%emt 0:27:31]} 2. e4 {[%emt 0:02:50]} c6 {[%emt 0:00:23]} 3. Nf3 {[%emt 0:04:19]} d5 {[%emt 0:00:54]} 4. cxd5 {[%emt 0:01:21]} exd5 {[%emt 0:00:57]} 5. e5 {[%emt 0:01:03]} d4 {[%emt 0:02:06]} 6. Bc4 {[%emt 0:00:19]} b5 {[%emt 0:01:58]} 7. Bd3 {[%emt 0:01:18]} Qd5 {[%emt 0:07:15]} 8. O-O {[%emt 0:00:51]} Bg4 {[%emt 0:00:21]} 9. Re1 {[%emt 0:00:10]} Nd7 {[%emt 0:01:04]} 10. Be4 {[%emt 0:00:06]} Qc5 {[%emt 0:02:23]} 11. h3 {[%emt 0:00:54]} Be6 {[%emt 0:04:13]} 12. d3 {[%emt 0:00:14]} Rc8 {[%emt 0:09:37]} 13. Bf4 {[%emt 0:00:06]} Ne7 {[%emt 0:00:53]} 14. Nbd2 {[%emt 0:00:03]} Qb6 {[%emt 0:00:35]} 15. Ng5 {[%emt 0:01:28]} g6 {[%emt 0:03:36]} 16. Nxe6 {[%emt 0:03:10]} fxe6 {[%emt 0:00:02]} 17. Qg4 {[%emt 0:01:16]} c5 {[%emt 0:02:18]} 18. a4 {[%emt 0:04:14]} a6 {[%emt 0:01:55]} 19. a5 {[%emt 0:00:27]} Qc7 {[%emt 0:03:14]} 20. Qxe6 {[%emt 0:00:10]} c4 {[%emt 0:00:58]} 21. Qxa6 {[%emt 0:01:52]} c3 {[%emt 0:11:30]} 22. bxc3 {[%emt 0:01:35]} dxc3 {[%emt 0:00:23]} 23. e6 {[%emt 0:00:17]} Qxf4 {[%emt 0:01:13]} 24. exd7+ {[%emt 0:00:21]} Kxd7 {[%emt 0:00:02]} 25. Qxb5+ {[%emt 0:00:09]} Kd8 {[%emt 0:01:12]} 26. Nc4 {[%emt 0:00:15]} Bg7 {[%emt 0:01:37]} 27. Qb6+ {[%emt 0:01:07]} Kd7 {[%emt 0:03:11]} 28. Bf3 {[%emt 0:01:47]} Bf6 {[%emt 0:09:13]} 29. Qe6+ {[%emt 0:02:04]} Kd8 {[%emt 0:00:31]} 30. Nd6 {[%emt 0:00:30]} c2 {[%emt 0:01:48]} 31. Rac1 {[%emt 0:00:22]} Rc7 {[%emt 0:01:21]} 32. Nf7+ {[%emt 0:00:07]} Ke8 {[%emt 0:00:18]} 33. Nxh8 {[%emt 0:00:05]} Bxh8 {[%emt 0:00:21]} 34. Qg8+ {[%emt 0:00:33]} Qf8 {[%emt 0:00:27]} 35. Qxf8+ {[%emt 0:00:09]} Kxf8 {[%emt 0:00:03]} 36. Re2 {[%emt 0:00:01]} Ra7 {[%emt 0:00:44]} 37. Rexc2 {[%emt 0:00:19]} Rxa5 {[%emt 0:00:03]} 38. Rb1 {[%emt 0:01:04]} Be5 {[%emt 0:00:12]} 39. Be4 {[%emt 0:00:15]} Kf7 {[%emt 0:00:14]} 40. g3 {[%emt 0:00:17]} h5 {[%emt 0:00:23]} 41. Kg2 {[%emt 0:00:05]} g5 {[%emt 0:00:18]} 42. Rb7 {[%emt 0:00:18]} Kf6 {[%emt 0:00:27]} 43. Rd7 {[%emt 0:01:36]} Ke6 {[%emt 0:00:50]} 44. Rd8 {[%emt 0:00:11]} h4 {[%emt 0:01:00]} 45. Ra8 {[%emt 0:00:22]} Rb5 {[%emt 0:00:15]} 46. Ra6+ {[%emt 0:00:20]} Kf7 {[%emt 0:00:09]} 47. Re2 {[%emt 0:00:56]} hxg3 {[%emt 0:00:32]} 48. fxg3 {[%emt 0:00:05]} Bd4 {[%emt 0:00:27]} 49. Kf3 {[%emt 0:01:05]} Bf6 {[%emt 0:00:08]} 50. Kg4 {[%emt 0:00:14]} Rb4 {[%emt 0:00:58]} 51. Rf2 {[%emt 0:00:16]} Ng8 {[%emt 0:00:26]} 52. Kh5 {[%emt 0:00:12]} Rb5 {[%emt 0:01:24]} 53. Rf5 {[%emt 0:00:53]} Rxf5 {[%emt 0:00:28]} 54. Bxf5 {[%emt 0:00:08]} Ne7 {[%emt 0:00:14]} 55. Be4 {[%emt 0:00:26]} Kg7 {[%emt 0:00:10]} 56. Ra5 {[%emt 0:00:54]} Kf7 {[%emt 0:00:40]} 57. Rxg5 {[%emt 0:00:06]} Bxg5 {[%emt 0:00:21]} 58. Kxg5 {[%emt 0:00:04]} Kg7 {[%emt 0:00:19]} 59. h4 {[%emt 0:00:04]} Nc8 {[%emt 0:00:23]} 60. h5 {[%emt 0:00:04]} Nd6 {[%emt 0:00:05]} 61. h6+ {[%emt 0:00:54]} Kg8 {[%emt 0:00:00]} 62. Kg6 {[%emt 0:00:10]} Nb5 {[%emt 0:00:37]} 63. g4 {[%emt 0:00:05]} Nd4 {[%emt 0:00:24]} 64. g5 {[%emt 0:00:13]} Ne2 {[%emt 0:00:27]} 65. Kf6 {[%emt 0:00:11]} Nf4 {[%emt 0:00:31]} 66. g6 {[%emt 0:00:18]} Nh5+ {[%emt 0:00:34]} 67. Kg5 {[%emt 0:00:14]} Ng3 {[%emt 0:00:08]} 68. Bd5+ {[%emt 0:00:43]} 1-0

[Event "Elegant 1st Division League 2024"]
[Site "Dhaka"]
[Date "2024.07.13"]
[Round "3.22"]
[White "Shatadru Shovan, Dey"]
[Black "Faisal, Hossain"]
[Result "1-0"]
[Annotator "NA RC"]
[ECO "A45"]
[WhiteElo "1879"]
[BlackElo "1872"]
[PlyCount "87"]
[EventDate "2024.07.10"]
[EventType "team-tourn"]
[EventCountry "BAN"]
[SourceTitle "playchess.com"]
[Source "ChessBase"]
[SourceQuality "1"]
[TimeControl "5400+30"]

1. d4 {[%emt 0:04:25]} Nf6 {[%emt 0:00:05]} 2. Bf4 {[%emt 0:00:17]} c5 {[%emt 0:01:38]} 3. e3 {[%emt 0:00:14]} cxd4 {[%emt 0:04:09]} 4. exd4 {[%emt 0:00:08]} Nd5 {[%emt 0:00:04]} 5. Bg3 {[%emt 0:01:22]} Qb6 {[%emt 0:00:14]} 6. Na3 {[%emt 0:01:42] A45: Trompowsky Attack.} Nc6 {[%emt 0:16:45]} 7. Bc4 {[%emt 0:00:33]} Nf6 {[%emt 0:01:36]} 8. Nb5 {[%emt 0:00:26]} d6 {[%emt 0:00:24]} 9. Ne2 {[%emt 0:11:27]} a6 {[%emt 0:01:21]} 10. Nbc3 {[%emt 0:00:08]} g6 {[%emt 0:03:39]} 11. O-O {[%emt 0:00:42]} Bg7 {[%emt 0:00:03]} 12. d5 {[%emt 0:01:32]} Na5 {[%emt 0:09:03]} 13. Bd3 {[%emt 0:00:51]} Bd7 {[%emt 0:00:54]} 14. Rb1 {[%emt 0:00:23]} Rc8 {[%emt 0:00:10]} 15. Nf4 {[%emt 0:08:59]} Nc4 {[%emt 0:01:33]} 16. Bxc4 {[%emt 0:05:24]} Rxc4 {[%emt 0:00:02]} 17. Re1 {[%emt 0:00:26]} Rc7 {[%emt 0:03:46]} 18. Kh1 {[%emt 0:08:51]} Ng4 {[%emt 0:04:53]} 19. Qe2 {[%emt 0:01:12]} O-O {[%emt 0:02:39]} 20. f3 {[%emt 0:05:30]} Ne5 {[%emt 0:01:45]} 21. Bf2 {[%emt 0:00:39]} Qa5 {[%emt 0:00:16]} 22. b4 {[%emt 0:00:37]} Qa3 {[%emt 0:00:15]} 23. Rb3 {[%emt 0:00:30]} Qxb3 {[%emt 0:00:04]} 24. axb3 {[%emt 0:00:45]} Rxc3 {[%emt 0:00:04]} 25. Bd4 {[%emt 0:00:47]} Rc7 {[%emt 0:00:30]} 26. c4 {[%emt 0:01:40]} Re8 {[%emt 0:01:32]} 27. Bb6 {[%emt 0:00:18]} Rcc8 {[%emt 0:00:02]} 28. g4 {[%emt 0:07:14]} Bh6 {[%emt 0:01:09]} 29. Be3 {[%emt 0:01:05]} Bg7 {[%emt 0:01:42]} 30. h4 {[%emt 0:00:21]} h6 {[%emt 0:01:31]} 31. Kg2 {[%emt 0:01:57]} e6 {[%emt 0:01:11]} 32. dxe6 {[%emt 0:01:44]} fxe6 {[%emt 0:00:14]} 33. Bd4 {[%emt 0:01:19]} Nxf3 {[%emt 0:02:10]} 34. Kxf3 {[%emt 0:00:35]} Bxd4 {[%emt 0:02:03]} 35. Nxg6 {[%emt 0:01:13]} Bc6+ {[%emt 0:03:23]} 36. Kg3 {[%emt 0:00:21]} e5 {[%emt 0:03:51]} 37. Qd2 {[%emt 0:00:49]} Kg7 {[%emt 0:00:05]} 38. h5 {[%emt 0:00:10]} Rc7 {[%emt 0:00:34]} 39. Rf1 {[%emt 0:00:41]} Be4 {[%emt 0:00:56]} 40. g5 {[%emt 0:04:51]} Bxg6 {[%emt 0:01:28]} 41. gxh6+ {[%emt 0:00:12]} Kh7 {[%emt 0:00:21]} 42. hxg6+ {[%emt 0:00:13]} Kxg6 {[%emt 0:00:07]} 43. Qd3+ {[%emt 0:03:35]} Kxh6 {[%emt 0:01:56]} 44. Rf6+ {[%emt 0:00:25]} 1-0

[Event "Elegant 1st Division League 2024"]
[Site "Dhaka"]
[Date "2024.07.13"]
[Round "3.23"]
[White "Asaduzzaman, Ahad"]
[Black "S M Sharon"]
[Result "0-1"]
[Annotator "ChessBase"]
[ECO "A00"]
[WhiteElo "1855"]
[BlackElo "2047"]
[PlyCount "108"]
[EventDate "2024.07.10"]
[EventType "team-tourn"]
[EventCountry "BAN"]
[SourceTitle "playchess.com"]
[Source "ChessBase"]
[SourceQuality "1"]
[TimeControl "5400+30"]

1. Nc3 {[%emt 0:00:05]} c5 {[%emt 0:07:07]} 2. Ne4 {[%emt 0:00:49]} b6 {[%emt 0:04:30]} 3. g3 {[%emt 0:03:16]} Bb7 {[%emt 0:02:39]} 4. Bg2 {[%emt 0:00:12]} d5 {[%emt 0:00:57]} 5. Nc3 {[%emt 0:01:55]} e5 {[%emt 0:03:59]} 6. e4 {[%emt 0:00:35]} dxe4 {[%emt 0:02:54]} 7. Nxe4 {[%emt 0:01:17]} Bc6 {[%emt 0:00:18]} 8. f3 {[%emt 0:11:11]} f5 {[%emt 0:02:07]} 9. Nf2 {[%emt 0:00:17]} Nf6 {[%emt 0:00:16]} 10. d3 {[%emt 0:02:57]} Bd6 {[%emt 0:00:38]} 11. Bg5 {[%emt 0:05:27]} Nbd7 {[%emt 0:00:47]} 12. Qd2 {[%emt 0:00:27]} h6 {[%emt 0:00:44]} 13. Bxf6 {[%emt 0:00:24]} Qxf6 {[%emt 0:00:48]} 14. O-O-O {[%emt 0:00:32]} O-O {[%emt 0:00:52]} 15. Ne2 {[%emt 0:03:18]} a5 {[%emt 0:00:43]} 16. g4 {[%emt 0:00:48]} Qe6 {[%emt 0:07:44]} 17. c4 {[%emt 0:00:35]} fxg4 {[%emt 0:00:25]} 18. Nxg4 {[%emt 0:01:41]} Bxf3 {[%emt 0:01:10]} 19. Bxf3 {[%emt 0:00:08]} Rxf3 {[%emt 0:00:03]} 20. Rhg1 {[%emt 0:00:22]} Kh7 {[%emt 0:02:47]} 21. Nc3 {[%emt 0:07:44]} Raf8 {[%emt 0:00:01]} 22. Ne4 {[%emt 0:00:42]} R8f4 {[%emt 0:01:06]} 23. Qg2 {[%emt 0:01:13]} Bf8 {[%emt 0:04:17]} 24. a4 {[%emt 0:03:11]} Nb8 {[%emt 0:04:14]} 25. h3 {[%emt 0:02:19]} Nc6 {[%emt 0:01:37]} 26. Kb1 {[%emt 0:19:38]} Nb4 {[%emt 0:03:23]} 27. Qe2 {[%emt 0:05:44]} Kh8 {[%emt 0:10:09]} 28. Nc3 {[%emt 0:02:03]} Bd6 {[%emt 0:01:48]} 29. Ne4 {[%emt 0:04:32]} Nc6 {[%emt 0:32:10]} 30. Qg2 {[%emt 0:01:19]} Bf8 {[%emt 0:00:18]} 31. Rgf1 {[%emt 0:03:27]} Rxf1 {[%emt 0:02:23]} 32. Rxf1 {[%emt 0:00:12]} Qd7 {[%emt 0:01:21]} 33. Rf3 {[%emt 0:04:13]} Qf7 {[%emt 0:01:53]} 34. Rf2 {[%emt 0:07:13]} Be7 {[%emt 0:00:47]} 35. Nc3 {[%emt 0:02:57]} Rxf2 {[%emt 0:00:00]} 36. Nxf2 {[%emt 0:00:57]} Nb4 {[%emt 0:00:00]} 37. Qa8+ {[%emt 0:02:07]} Kh7 {[%emt 0:00:00]} 38. Qe4+ {[%emt 0:00:15]} Qg6 {[%emt 0:00:26]} 39. Nd5 {[%emt 0:01:33]} Bh4 {[%emt 0:01:57]} 40. Ng4 {[%emt 0:01:15]} Nxd3 {[%emt 0:00:22]} 41. Qxg6+ {[%emt 0:00:10]} Kxg6 {[%emt 0:00:02]} 42. Nxb6 {[%emt 0:00:46]} Kf5 {[%emt 0:00:27]} 43. Kc2 {[%emt 0:00:53]} Nf4 {[%emt 0:00:01]} 44. Nd7 {[%emt 0:01:02]} h5 {[%emt 0:01:04]} 45. Ngxe5 {[%emt 0:00:39]} Nxh3 {[%emt 0:00:07]} 46. Nf3 {[%emt 0:00:13]} Be7 {[%emt 0:00:37]} 47. Kd3 {[%emt 0:00:39]} g5 {[%emt 0:00:21]} 48. Ke3 {[%emt 0:00:40]} g4 {[%emt 0:00:08]} 49. Ne1 {[%emt 0:00:24]} Bg5+ {[%emt 0:00:55]} 50. Ke2 {[%emt 0:00:09]} Nf4+ {[%emt 0:00:05]} 51. Kf1 {[%emt 0:00:21]} Be7 {[%emt 0:00:20]} 52. Nb8 {[%emt 0:01:03]} h4 {[%emt 0:00:15]} 53. Nc6 {[%emt 0:00:21]} Bd6 {[%emt 0:00:13]} 54. Nxa5 {[%emt 0:00:47]} h3 {[%emt 0:00:06]} 0-1

[Event "Elegant 1st Division League 2024"]
[Site "Dhaka"]
[Date "2024.07.13"]
[Round "3.24"]
[White "Sacchu, Afzal Hossain"]
[Black "Shejal Sahil Sanjay"]
[Result "0-1"]
[Annotator "RC"]
[ECO "A42"]
[WhiteElo "1981"]
[BlackElo "1750"]
[PlyCount "52"]
[EventDate "2024.07.10"]
[EventType "team-tourn"]
[EventCountry "BAN"]
[SourceTitle "playchess.com"]
[Source "ChessBase"]
[SourceQuality "1"]
[TimeControl "5400+30"]

1. d4 {[%emt 0:03:56]} d6 {[%emt 0:00:01]} 2. Nf3 {[%emt 0:00:29]} g6 {[%emt 0:00:01]} 3. c4 {[%emt 0:00:39]} Bg7 {[%emt 0:00:01]} 4. Nc3 {[%emt 0:00:11]} Nc6 {[%emt 0:00:01]} 5. e4 {[%emt 0:00:49]} e5 {[%emt 0:00:02]} 6. d5 {[%emt 0:00:51]} Nce7 {[%emt 0:00:01]} 7. Be2 {[%emt 0:01:06]} f5 {[%emt 0:00:17]} 8. Bg5 {[%emt 0:00:56]} h6 {[%emt 0:01:37]} 9. Bxe7 {[%emt 0:01:27]} Nxe7 {[%emt 0:00:02]} 10. O-O {[%emt 0:00:53]} O-O {[%emt 0:01:33]} 11. h3 {[%emt 0:00:52]} g5 {[%emt 0:02:02]} 12. exf5 {[%emt 0:03:40]} Nxf5 {[%emt 0:00:04]} 13. Ne4 {[%emt 0:04:20]} Nd4 {[%emt 0:00:50]} 14. Nxd4 {[%emt 0:01:36]} exd4 {[%emt 0:00:11]} 15. Ng3 {[%emt 0:03:37]} c5 {[%emt 0:03:20]} 16. dxc6 {[%emt 0:03:11]} bxc6 {[%emt 0:00:17]} 17. Nh5 {[%emt 0:03:02]} Be5 {[%emt 0:00:19]} 18. Bd3 {[%emt 0:02:26]} g4 {[%emt 0:10:10]} 19. Qd2 {[%emt 0:18:35]} Qg5 {[%emt 0:01:26]} 20. Qxg5+ {[%emt 0:00:13]} hxg5 {[%emt 0:00:03]} 21. hxg4 {[%emt 0:01:48]} Bxg4 {[%emt 0:00:02]} 22. Bg6 {[%emt 0:00:53]} Be2 {[%emt 0:00:58]} 23. Rfc1 {[%emt 0:03:17]} d3 {[%emt 0:00:06]} 24. Re1 {[%emt 0:01:56]} Bd4 {[%emt 0:00:22]} 25. Rf1 {[%emt 0:01:16]} d2 {[%emt 0:00:55]} 26. Bc2 {[%emt 0:00:25]} Bxh5 {[%emt 0:00:08]} 0-1

[Event "Elegant 1st Division League 2024"]
[Site "Dhaka"]
[Date "2024.07.14"]
[Round "4.1"]
[White "Hossain, Showkat Pollab"]
[Black "Miraj Uddin, Ahmed"]
[Result "1/2-1/2"]
[Annotator "ChessBase"]
[ECO "C00"]
[WhiteElo "1990"]
[BlackElo "1827"]
[PlyCount "107"]
[EventDate "2024.07.10"]
[EventType "team-tourn"]
[EventCountry "BAN"]
[SourceTitle "playchess.com"]
[Source "ChessBase"]
[SourceQuality "1"]
[TimeControl "5400+30"]

1. e4 {[%emt 0:00:08]} e6 {[%emt 0:00:18]} 2. d3 {[%emt 0:01:26]} d5 {[%emt 0:00:44]} 3. Nd2 {[%emt 0:02:00]} f5 {[%emt 0:00:12]} 4. Qe2 {[%emt 0:01:00]} Ne7 {[%emt 0:00:43]} 5. Ngf3 {[%emt 0:00:57]} g6 {[%emt 0:00:31]} 6. g3 {[%emt 0:04:17]} Bg7 {[%emt 0:00:14]} 7. exf5 {[%emt 0:04:20]} exf5 {[%emt 0:02:56]} 8. Ng5 {[%emt 0:01:56]} O-O {[%emt 0:01:02]} 9. Ne6 {[%emt 0:10:25]} Bxe6 {[%emt 0:00:16]} 10. Qxe6+ {[%emt 0:00:01]} Kh8 {[%emt 0:00:09]} 11. Bg2 {[%emt 0:00:38]} Nbc6 {[%emt 0:04:40]} 12. Nf3 {[%emt 0:05:30]} Rf6 {[%emt 0:07:18]} 13. Qe2 {[%emt 0:02:33]} Qd7 {[%emt 0:00:35]} 14. O-O {[%emt 0:01:42]} Re6 {[%emt 0:00:19]} 15. Qd1 {[%emt 0:00:40]} h6 {[%emt 0:00:12]} 16. c3 {[%emt 0:04:34]} Re8 {[%emt 0:00:29]} 17. h4 {[%emt 0:03:19]} Kh7 {[%emt 0:00:31]} 18. Bf4 {[%emt 0:02:33]} Ne5 {[%emt 0:01:08]} 19. Qd2 {[%emt 0:06:30]} Nxf3+ {[%emt 0:00:33]} 20. Bxf3 {[%emt 0:00:45]} Ng8 {[%emt 0:00:40]} 21. Rfe1 {[%emt 0:01:57]} c6 {[%emt 0:00:23]} 22. Rxe6 {[%emt 0:01:40]} Qxe6 {[%emt 0:00:35]} 23. Qe3 {[%emt 0:01:41]} Qxe3 {[%emt 0:01:41]} 24. Bxe3 {[%emt 0:00:05]} a6 {[%emt 0:00:36]} 25. a4 {[%emt 0:02:04]} Be5 {[%emt 0:00:10]} 26. a5 {[%emt 0:01:06]} Bxg3 {[%emt 0:02:26]} 27. Ra4 {[%emt 0:04:50]} Bd6 {[%emt 0:07:52]} 28. Kg2 {[%emt 0:01:53]} Kg7 {[%emt 0:02:20]} 29. c4 {[%emt 0:01:04]} dxc4 {[%emt 0:02:25]} 30. Rxc4 {[%emt 0:02:53]} Nf6 {[%emt 0:03:14]} 31. Bd4 {[%emt 0:08:32]} Be5 {[%emt 0:00:59]} 32. Bc5 {[%emt 0:02:09]} Rd8 {[%emt 0:02:44]} 33. Rb4 {[%emt 0:01:21]} Rd7 {[%emt 0:01:25]} 34. d4 {[%emt 0:00:27]} Bf4 {[%emt 0:09:25]} 35. d5 {[%emt 0:03:32]} Nxd5 {[%emt 0:01:25]} 36. Bxd5 {[%emt 0:00:05]} Rxd5 {[%emt 0:00:07]} 37. Rxb7+ {[%emt 0:00:05]} Kf6 {[%emt 0:47:43]} 38. b4 {[%emt 0:02:08]} Bd6 {[%emt 0:00:00]} 39. Bxd6 {[%emt 0:01:54]} Rxd6 {[%emt 0:00:00]} 40. Rb6 {[%emt 0:00:06]} Rd4 {[%emt 0:00:00]} 41. Rxc6+ {[%emt 0:00:22]} Kf7 {[%emt 0:02:00]} 42. h5 {[%emt 0:01:43]} gxh5 {[%emt 0:00:00]} 43. Rxa6 {[%emt 0:00:58]} Rxb4 {[%emt 0:00:00]} 44. Rxh6 {[%emt 0:00:11]} Ra4 {[%emt 0:00:00]} 45. a6 {[%emt 0:00:46]} Kg7 {[%emt 0:00:00]} 46. Rb6 {[%emt 0:00:22]} Rg4+ {[%emt 0:00:00]} 47. Kh3 {[%emt 0:00:52]} Ra4 {[%emt 0:00:00]} 48. f3 {[%emt 0:00:41]} h4 {[%emt 0:00:00]} 49. Rc6 {[%emt 0:01:26]} Kf7 {[%emt 0:04:00]} 50. Rh6 {[%emt 0:02:20]} Kg7 {[%emt 0:00:00]} 51. Rd6 {[%emt 0:00:39]} Kf7 {[%emt 0:00:00]} 52. Rb6 {[%emt 0:01:34]} Kg7 {[%emt 0:01:30]} 53. Rb7+ {[%emt 0:01:11]} Kf6 {[%emt 0:00:00]} 54. a7 {[%emt 0:00:16]} 1/2-1/2

[Event "Elegant 1st Division League 2024"]
[Site "Dhaka"]
[Date "2024.07.14"]
[Round "4.2"]
[White "Shatadru Shovan, Dey"]
[Black "Ahmed, Mahtabuddin"]
[Result "0-1"]
[Annotator "ChessBase"]
[ECO "D00"]
[WhiteElo "1879"]
[BlackElo "1974"]
[PlyCount "45"]
[EventDate "2024.07.10"]
[EventType "team-tourn"]
[EventCountry "BAN"]
[SourceTitle "playchess.com"]
[Source "ChessBase"]
[SourceQuality "1"]
[TimeControl "5400+30"]

1. d4 {[%emt 0:00:04]} d5 {[%emt 0:00:45]} 2. Bf4 {[%emt 0:00:37]} Bf5 {[%emt 0:01:17]} 3. c4 {[%emt 0:04:37]} c6 {[%emt 0:01:49]} 4. Nc3 {[%emt 0:02:35]} Qb6 {[%emt 0:06:25]} 5. cxd5 {[%emt 0:00:29]} Qxb2 {[%emt 0:04:43]} 6. Rc1 {[%emt 0:01:05]} Nf6 {[%emt 0:07:03]} 7. f3 {[%emt 0:17:45]} Nxd5 {[%emt 1:11:58]} 8. Nxd5 {[%emt 0:02:00]} cxd5 {[%emt 0:00:00]} 9. e4 {[%emt 0:00:23]} Bd7 {[%emt 0:00:00]} 10. Rc2 {[%emt 0:02:56]} Qb4+ {[%emt 0:00:00]} 11. Kf2 {[%emt 0:00:14]} Nc6 {[%emt 0:00:00]} 12. exd5 {[%emt 0:06:33]} Nxd4 {[%emt 0:00:00]} 13. Rc4 {[%emt 0:01:03]} Qb2+ {[%emt 0:00:00]} 14. Ne2 {[%emt 0:02:37]} Nf5 {[%emt 0:00:00]} 15. g4 {[%emt 0:13:22]} Qb6+ {[%emt 0:00:00]} 16. Nd4 {[%emt 0:01:25]} Nxd4 {[%emt 0:00:00]} 17. Rxd4 {[%emt 0:00:03]} g6 {[%emt 0:00:00]} 18. Be3 {[%emt 0:01:38]} Bg7 {[%emt 0:00:00]} 19. Rc4 {[%emt 0:03:43]} Qd8 {[%emt 0:00:00]} 20. d6 {[%emt 0:00:39]} O-O {[%emt 0:00:00]} 21. Rc7 {[%emt 0:08:30]} exd6 {[%emt 0:00:00]} 22. Rxb7 {[%emt 0:01:15]} Rc8 {[%emt 0:00:00]} 23. Rb5 {[%emt 0:01:57]} 0-1